[Event "Titled Tuesday Blitz November 01 Early 2022"]
[White "Ozdemir, Serhan Berat"]
[Black "Csonka, Balazs"]
[WhiteFideId "6374611"]
[BlackFideId "742910"]
[WhiteElo "2553"]
[BlackElo "2744"]
[Result "0-1"]
[Round "06"]
[TimeControl "180+1"]
[Date "2022.11.02"]
[WhiteClock "0:00:01"]
[BlackClock "0:00:54"]

1. e4 {[%clk 0:03:00]}  e5 {[%clk 0:02:58]} 2. Nf3 {[%clk 0:03:00]}  Nc6 {[%clk 0:02:58]} 3. d4 {[%clk 0:03:01]}  exd4 {[%clk 0:02:55]} 4. Bc4 {[%clk 0:03:00]}  Nf6 {[%clk 0:02:45]} 5. e5 {[%clk 0:02:59]}  d5 {[%clk 0:02:45]} 6. Bb5 {[%clk 0:03:00]}  Nd7 {[%clk 0:02:40]} 7. O-O {[%clk 0:02:59]}  Be7 {[%clk 0:02:39]} 8. Re1 {[%clk 0:02:53]}  O-O {[%clk 0:02:38]} 9. Bxc6 {[%clk 0:02:54]}  bxc6 {[%clk 0:02:38]} 10. Nxd4 {[%clk 0:02:54]}  Nb8 {[%clk 0:02:38]} 11. Qf3 {[%clk 0:02:55]}  Qd7 {[%clk 0:02:22]} 12. Nc3 {[%clk 0:02:52]}  Na6 {[%clk 0:02:02]} 13. Bf4 {[%clk 0:02:25]}  Nc5 {[%clk 0:01:58]} 14. Bg3 {[%clk 0:02:08]}  Ne6 {[%clk 0:01:45]} 15. Nf5 {[%clk 0:01:54]}  Bb4 {[%clk 0:01:41]} 16. Qg4 {[%clk 0:01:13]}  Bxc3 {[%clk 0:01:05]} 17. bxc3 {[%clk 0:01:14]}  Ng5 {[%clk 0:01:04]} 18. Qxg5 {[%clk 0:00:10]}  Qxf5 {[%clk 0:01:03]} 19. Qxf5 {[%clk 0:00:11]}  Bxf5 {[%clk 0:01:04]} 20. Rab1 {[%clk 0:00:09]}  Rab8 {[%clk 0:00:58]} 21. Rec1 {[%clk 0:00:07]}  Bxc2 {[%clk 0:00:54]} 22. Rxb8 {[%clk 0:00:02]}  Rxb8 {[%clk 0:00:55]} 23. h4 {[%clk 0:00:01]}  Rb2 {[%clk 0:00:54]} 0-1


[Site "https://www.chess.com"]

[Event "Titled Tuesday Blitz November 01 Early 2022"]
[White "Pap, Gyula"]
[Black "Toshali, V"]
[WhiteFideId "725323"]
[BlackFideId "5072611"]
[WhiteElo "2519"]
[BlackElo "1973"]
[Result "1-0"]
[Round "06"]
[TimeControl "180+1"]
[Date "2022.11.02"]
[WhiteClock "0:00:52"]
[BlackClock "0:00:01"]

1. d4 {[%clk 0:03:00]}  c5 {[%clk 0:00:20]} 2. d5 {[%clk 0:02:36]}  d6 {[%clk 0:00:18]} 3. c4 {[%clk 0:02:34]}  Bd7 {[%clk 0:00:19]} 4. Nc3 {[%clk 0:02:33]}  a6 {[%clk 0:00:19]} 5. a4 {[%clk 0:02:33]}  g6 {[%clk 0:00:19]} 6. e4 {[%clk 0:02:30]}  Bg7 {[%clk 0:00:19]} 7. Nf3 {[%clk 0:02:29]}  Nf6 {[%clk 0:00:20]} 8. h3 {[%clk 0:02:30]}  O-O {[%clk 0:00:21]} 9. Bg5 {[%clk 0:02:21]}  e6 {[%clk 0:00:21]} 10. Qd2 {[%clk 0:01:59]}  Qe7 {[%clk 0:00:19]} 11. Be2 {[%clk 0:01:58]}  Re8 {[%clk 0:00:19]} 12. O-O {[%clk 0:01:57]}  Qf8 {[%clk 0:00:19]} 13. a5 {[%clk 0:01:49]}  h6 {[%clk 0:00:19]} 14. Be3 {[%clk 0:01:49]}  exd5 {[%clk 0:00:19]} 15. exd5 {[%clk 0:01:50]}  Re7 {[%clk 0:00:18]} 16. Bf4 {[%clk 0:01:47]}  Re8 {[%clk 0:00:17]} 17. Rfe1 {[%clk 0:01:45]}  g5 {[%clk 0:00:17]} 18. Bh2 {[%clk 0:01:42]}  Bf5 {[%clk 0:00:18]} 19. Bd3 {[%clk 0:01:41]}  Bxd3 {[%clk 0:00:16]} 20. Qxd3 {[%clk 0:01:41]}  Nbd7 {[%clk 0:00:15]} 21. Qf5 {[%clk 0:01:21]}  Rad8 {[%clk 0:00:09]} 22. g4 {[%clk 0:01:17]}  Rxe1+ {[%clk 0:00:06]} 23. Rxe1 {[%clk 0:01:18]}  Ne8 {[%clk 0:00:06]} 24. h4 {[%clk 0:01:11]}  gxh4 {[%clk 0:00:05]} 25. g5 {[%clk 0:01:11]}  hxg5 {[%clk 0:00:05]} 26. Nxg5 {[%clk 0:01:12]}  Ndf6 {[%clk 0:00:05]} 27. Kh1 {[%clk 0:01:08]}  Rd7 {[%clk 0:00:06]} 28. Rg1 {[%clk 0:01:06]}  Re7 {[%clk 0:00:06]} 29. Nce4 {[%clk 0:01:04]}  Kh8 {[%clk 0:00:03]} 30. Nxf6 {[%clk 0:01:02]}  Nxf6 {[%clk 0:00:04]} 31. Bxd6 {[%clk 0:01:02]}  Qe8 {[%clk 0:00:01]} 32. Bxe7 {[%clk 0:00:51]}  Qxe7 {[%clk 0:00:01]} 33. Qc8+ {[%clk 0:00:52]} 1-0


[Site "https://www.chess.com"]

[Event "Titled Tuesday Blitz November 01 Early 2022"]
[White "Parpiev, Isaak"]
[Black "Gorodetzky, David"]
[WhiteFideId "34281576"]
[BlackFideId "2813416"]
[WhiteElo "2100"]
[BlackElo "2487"]
[Result "0-1"]
[Round "06"]
[TimeControl "180+1"]
[Date "2022.11.01"]
[WhiteClock "0:00:08"]
[BlackClock "0:00:13"]

1. e4 {[%clk 0:02:54]}  c6 {[%clk 0:02:52]} 2. d4 {[%clk 0:02:51]}  d5 {[%clk 0:02:49]} 3. exd5 {[%clk 0:02:51]}  cxd5 {[%clk 0:02:49]} 4. c4 {[%clk 0:02:49]}  Nf6 {[%clk 0:02:49]} 5. Nc3 {[%clk 0:02:48]}  g6 {[%clk 0:02:49]} 6. cxd5 {[%clk 0:02:47]}  Bg7 {[%clk 0:02:45]} 7. Bc4 {[%clk 0:02:46]}  Nbd7 {[%clk 0:02:40]} 8. d6 {[%clk 0:02:38]}  e6 {[%clk 0:02:33]} 9. Nf3 {[%clk 0:02:26]}  O-O {[%clk 0:02:33]} 10. Bf4 {[%clk 0:02:21]}  Nh5 {[%clk 0:02:29]} 11. Be5 {[%clk 0:02:10]}  Nb6 {[%clk 0:02:24]} 12. Bb3 {[%clk 0:01:57]}  f6 {[%clk 0:02:24]} 13. Bg3 {[%clk 0:01:33]}  Nxg3 {[%clk 0:02:24]} 14. hxg3 {[%clk 0:01:34]}  Qxd6 {[%clk 0:02:25]} 15. O-O {[%clk 0:01:34]}  Nd5 {[%clk 0:02:15]} 16. Ne4 {[%clk 0:01:14]}  Qd8 {[%clk 0:02:13]} 17. Re1 {[%clk 0:01:12]}  b6 {[%clk 0:02:12]} 18. Nc3 {[%clk 0:00:52]}  Kh8 {[%clk 0:02:11]} 19. Rc1 {[%clk 0:00:50]}  Rf7 {[%clk 0:02:05]} 20. Qd3 {[%clk 0:00:45]}  Bh6 {[%clk 0:01:54]} 21. Rcd1 {[%clk 0:00:38]}  Qd7 {[%clk 0:01:50]} 22. Ba4 {[%clk 0:00:24]}  Qd6 {[%clk 0:01:50]} 23. Nxd5 {[%clk 0:00:22]}  exd5 {[%clk 0:01:44]} 24. Re8+ {[%clk 0:00:22]}  Rf8 {[%clk 0:01:45]} 25. Rde1 {[%clk 0:00:21]}  Bf5 {[%clk 0:01:44]} 26. Qb5 {[%clk 0:00:18]}  a6 {[%clk 0:01:36]} 27. Qc6 {[%clk 0:00:14]}  Qxc6 {[%clk 0:01:26]} 28. Bxc6 {[%clk 0:00:15]}  Raxe8 {[%clk 0:01:26]} 29. Rxe8 {[%clk 0:00:15]}  Rxe8 {[%clk 0:01:21]} 30. Bxe8 {[%clk 0:00:16]}  Bc1 {[%clk 0:01:20]} 31. Bc6 {[%clk 0:00:09]}  Be4 {[%clk 0:01:15]} 32. b3 {[%clk 0:00:06]}  Kg7 {[%clk 0:01:13]} 33. Kf1 {[%clk 0:00:06]}  Kf8 {[%clk 0:01:09]} 34. Ke2 {[%clk 0:00:06]}  Ke7 {[%clk 0:01:09]} 35. Ne1 {[%clk 0:00:05]}  Kd6 {[%clk 0:01:06]} 36. Bb7 {[%clk 0:00:05]}  a5 {[%clk 0:01:04]} 37. Nd3 {[%clk 0:00:05]}  Ba3 {[%clk 0:00:58]} 38. f3 {[%clk 0:00:05]}  Bf5 {[%clk 0:00:49]} 39. Nf4 {[%clk 0:00:05]}  Bb2 {[%clk 0:00:50]} 40. Ke3 {[%clk 0:00:02]}  Bc1+ {[%clk 0:00:47]} 41. Ke2 {[%clk 0:00:02]}  Bb2 {[%clk 0:00:43]} 42. Ke3 {[%clk 0:00:02]}  Bc1+ {[%clk 0:00:42]} 43. Ke2 {[%clk 0:00:03]}  Bxf4 {[%clk 0:00:43]} 44. gxf4 {[%clk 0:00:03]}  g5 {[%clk 0:00:43]} 45. fxg5 {[%clk 0:00:03]}  fxg5 {[%clk 0:00:44]} 46. g3 {[%clk 0:00:03]}  h5 {[%clk 0:00:44]} 47. Kf2 {[%clk 0:00:03]}  Be6 {[%clk 0:00:43]} 48. Ba6 {[%clk 0:00:03]}  Ke7 {[%clk 0:00:43]} 49. Bd3 {[%clk 0:00:03]}  Kf6 {[%clk 0:00:43]} 50. a3 {[%clk 0:00:04]}  Bf5 {[%clk 0:00:42]} 51. Bb5 {[%clk 0:00:04]}  h4 {[%clk 0:00:40]} 52. b4 {[%clk 0:00:04]}  axb4 {[%clk 0:00:39]} 53. axb4 {[%clk 0:00:04]}  Be6 {[%clk 0:00:37]} 54. Ba4 {[%clk 0:00:03]}  Bf7 {[%clk 0:00:34]} 55. Bb3 {[%clk 0:00:04]}  Be6 {[%clk 0:00:30]} 56. Ba2 {[%clk 0:00:04]}  Ke7 {[%clk 0:00:30]} 57. Bb3 {[%clk 0:00:04]}  Kd6 {[%clk 0:00:31]} 58. Ba4 {[%clk 0:00:04]}  Bf5 {[%clk 0:00:27]} 59. Bb5 {[%clk 0:00:04]}  Bc2 {[%clk 0:00:26]} 60. Be2 {[%clk 0:00:04]}  Kc6 {[%clk 0:00:22]} 61. Kg2 {[%clk 0:00:04]}  Bf5 {[%clk 0:00:20]} 62. Bf1 {[%clk 0:00:02]}  Kd6 {[%clk 0:00:18]} 63. Be2 {[%clk 0:00:03]}  Be6 {[%clk 0:00:18]} 64. Bd1 {[%clk 0:00:03]}  Bf5 {[%clk 0:00:18]} 65. Ba4 {[%clk 0:00:03]}  Bd3 {[%clk 0:00:17]} 66. Kh3 {[%clk 0:00:03]}  hxg3 {[%clk 0:00:17]} 67. Kxg3 {[%clk 0:00:03]}  Bf5 {[%clk 0:00:13]} 68. Be8 {[%clk 0:00:03]}  Ke6 {[%clk 0:00:13]} 69. Bc6 {[%clk 0:00:03]}  Kd6 {[%clk 0:00:13]} 70. Bb5 {[%clk 0:00:04]}  Be6 {[%clk 0:00:13]} 71. Be2 {[%clk 0:00:03]}  Ke7 {[%clk 0:00:14]} 72. Bb5 {[%clk 0:00:04]}  Kf6 {[%clk 0:00:14]} 73. Bc6 {[%clk 0:00:04]}  Kf5 {[%clk 0:00:14]} 74. Bb7 {[%clk 0:00:04]}  Bf7 {[%clk 0:00:14]} 75. Bc8+ {[%clk 0:00:03]}  Kf6 {[%clk 0:00:14]} 76. Bb7 {[%clk 0:00:03]}  Be6 {[%clk 0:00:14]} 77. Bc6 {[%clk 0:00:03]}  Ke7 {[%clk 0:00:14]} 78. Bb5 {[%clk 0:00:03]}  Kd6 {[%clk 0:00:13]} 79. Be8 {[%clk 0:00:04]}  Bf5 {[%clk 0:00:12]} 80. Bb5 {[%clk 0:00:04]}  Ke7 {[%clk 0:00:12]} 81. Bc6 {[%clk 0:00:04]}  Kf6 {[%clk 0:00:13]} 82. Bxd5 {[%clk 0:00:04]}  Bd7 {[%clk 0:00:13]} 83. Be4 {[%clk 0:00:04]}  Be6 {[%clk 0:00:14]} 84. d5 {[%clk 0:00:04]}  Bd7 {[%clk 0:00:15]} 85. Bd3 {[%clk 0:00:04]}  Ke5 {[%clk 0:00:15]} 86. Bc4 {[%clk 0:00:04]}  Kd4 {[%clk 0:00:15]} 87. Ba2 {[%clk 0:00:03]}  Kc3 {[%clk 0:00:15]} 88. b5 {[%clk 0:00:02]}  Kb4 {[%clk 0:00:08]} 89. f4 {[%clk 0:00:02]}  gxf4+ {[%clk 0:00:08]} 90. Kxf4 {[%clk 0:00:03]}  Kxb5 {[%clk 0:00:07]} 91. Ke5 {[%clk 0:00:03]}  Kc5 {[%clk 0:00:07]} 92. Bb1 {[%clk 0:00:03]}  b5 {[%clk 0:00:07]} 93. Bc2 {[%clk 0:00:02]}  b4 {[%clk 0:00:07]} 94. Bb3 {[%clk 0:00:01]}  Bb5 {[%clk 0:00:08]} 95. d6 {[%clk 0:00:01]}  Bd7 {[%clk 0:00:08]} 96. Be6 {[%clk 0:00:01]}  Bc6 {[%clk 0:00:05]} 97. d7 {[%clk 0:00:01]}  Bxd7 {[%clk 0:00:06]} 98. Bxd7 {[%clk 0:00:02]}  Kc4 {[%clk 0:00:06]} 99. Bf5 {[%clk 0:00:03]}  Kc3 {[%clk 0:00:07]} 100. Bg6 {[%clk 0:00:03]}  b3 {[%clk 0:00:08]} 101. Bf5 {[%clk 0:00:04]}  Kb2 {[%clk 0:00:09]} 102. Be4 {[%clk 0:00:04]}  Ka2 {[%clk 0:00:10]} 103. Kd4 {[%clk 0:00:05]}  b2 {[%clk 0:00:11]} 104. Kc3 {[%clk 0:00:06]}  Ka3 {[%clk 0:00:12]} 105. Kc2 {[%clk 0:00:06]}  Ka2 {[%clk 0:00:12]} 106. Kc3 {[%clk 0:00:06]}  Ka1 {[%clk 0:00:13]} 107. Bb1 {[%clk 0:00:07]}  Kxb1 {[%clk 0:00:13]} 108. Kd3 {[%clk 0:00:08]}  Kc1 {[%clk 0:00:13]} 0-1


[Site "https://www.chess.com"]

[Event "Titled Tuesday Blitz November 01 Early 2022"]
[White "Pinheiro, Iung Alicio de O."]
[Black "Zilleruelo Irizarry, Diego"]
[WhiteFideId "2104350"]
[BlackFideId "3101460"]
[WhiteElo "2283"]
[BlackElo "1998"]
[Result "1-0"]
[Round "06"]
[TimeControl "180+1"]
[Date "2022.11.02"]
[WhiteClock "0:00:18"]
[BlackClock "0:00:04"]

1. d4 {[%clk 0:03:00]}  d5 {[%clk 0:02:59]} 2. Bf4 {[%clk 0:02:58]}  c5 {[%clk 0:02:58]} 3. e3 {[%clk 0:02:58]}  Nc6 {[%clk 0:02:56]} 4. c3 {[%clk 0:02:57]}  Qb6 {[%clk 0:02:56]} 5. Qb3 {[%clk 0:02:56]}  c4 {[%clk 0:02:56]} 6. Qc2 {[%clk 0:02:56]}  e5 {[%clk 0:02:56]} 7. dxe5 {[%clk 0:02:53]}  Bf5 {[%clk 0:02:56]} 8. Qxf5 {[%clk 0:02:36]}  Qxb2 {[%clk 0:02:54]} 9. e6 {[%clk 0:02:37]}  fxe6 {[%clk 0:02:41]} 10. Qxe6+ {[%clk 0:02:27]}  Nge7 {[%clk 0:02:41]} 11. Bxc4 {[%clk 0:01:54]}  dxc4 {[%clk 0:02:23]} 12. Nf3 {[%clk 0:01:53]}  Qxa1 {[%clk 0:02:05]} 13. O-O {[%clk 0:01:51]}  h6 {[%clk 0:01:53]} 14. Nbd2 {[%clk 0:01:33]}  Qxa2 {[%clk 0:01:27]} 15. Nxc4 {[%clk 0:01:26]}  Qa4 {[%clk 0:00:59]} 16. Nd6+ {[%clk 0:01:13]}  Kd8 {[%clk 0:01:00]} 17. Nxb7+ {[%clk 0:00:49]}  Ke8 {[%clk 0:01:00]} 18. Nd6+ {[%clk 0:00:50]}  Kd8 {[%clk 0:00:59]} 19. Nf7+ {[%clk 0:00:50]}  Ke8 {[%clk 0:01:00]} 20. Nxh8 {[%clk 0:00:50]}  Nd8 {[%clk 0:00:58]} 21. Qh3 {[%clk 0:00:44]}  Qe4 {[%clk 0:00:56]} 22. Qh5+ {[%clk 0:00:42]}  g6 {[%clk 0:00:55]} 23. Qb5+ {[%clk 0:00:42]}  Ndc6 {[%clk 0:00:49]} 24. Ne5 {[%clk 0:00:38]}  g5 {[%clk 0:00:45]} 25. Bg3 {[%clk 0:00:36]}  Rb8 {[%clk 0:00:35]} 26. Qc5 {[%clk 0:00:33]}  Nxe5 {[%clk 0:00:28]} 27. Bxe5 {[%clk 0:00:22]}  Rc8 {[%clk 0:00:28]} 28. Qd6 {[%clk 0:00:21]}  Rc6 {[%clk 0:00:22]} 29. Qd4 {[%clk 0:00:20]}  Qxd4 {[%clk 0:00:19]} 30. Bxd4 {[%clk 0:00:21]}  h5 {[%clk 0:00:17]} 31. f4 {[%clk 0:00:20]}  g4 {[%clk 0:00:17]} 32. f5 {[%clk 0:00:20]}  Nd5 {[%clk 0:00:17]} 33. Ng6 {[%clk 0:00:20]}  Nxc3 {[%clk 0:00:17]} 34. Nxf8 {[%clk 0:00:18]}  Kxf8 {[%clk 0:00:16]} 35. Kf2 {[%clk 0:00:19]}  Ne4+ {[%clk 0:00:16]} 36. Ke2 {[%clk 0:00:19]}  h4 {[%clk 0:00:11]} 37. Kd3 {[%clk 0:00:19]}  Nf6 {[%clk 0:00:08]} 38. e4 {[%clk 0:00:19]}  Nh5 {[%clk 0:00:05]} 39. e5 {[%clk 0:00:18]}  a5 {[%clk 0:00:05]} 40. e6 {[%clk 0:00:18]}  Ke7 {[%clk 0:00:03]} 41. Ke4 {[%clk 0:00:18]}  Rc4 {[%clk 0:00:03]} 42. Kd5 {[%clk 0:00:18]}  Rb4 {[%clk 0:00:03]} 43. f6+ {[%clk 0:00:18]}  Ke8 {[%clk 0:00:03]} 44. f7+ {[%clk 0:00:18]}  Ke7 {[%clk 0:00:04]} 45. Bc5+ {[%clk 0:00:18]} 1-0


[Site "https://www.chess.com"]

[Event "Titled Tuesday Blitz November 01 Early 2022"]
[White "Pultinevicius, Paulius"]
[Black "Korelskiy, Egor"]
[WhiteFideId "12809390"]
[BlackFideId "34329064"]
[WhiteElo "2500"]
[BlackElo "2053"]
[Result "1-0"]
[Round "06"]
[TimeControl "180+1"]
[Date "2022.11.01"]
[WhiteClock "0:00:40"]
[BlackClock "0:00:02"]

1. d4 {[%clk 0:03:00]}  d5 {[%clk 0:03:00]} 2. c4 {[%clk 0:02:48]}  e6 {[%clk 0:02:59]} 3. Nc3 {[%clk 0:02:34]}  c6 {[%clk 0:02:59]} 4. e3 {[%clk 0:02:28]}  Bd6 {[%clk 0:02:58]} 5. Nf3 {[%clk 0:02:28]}  f5 {[%clk 0:02:58]} 6. h3 {[%clk 0:02:26]}  Nf6 {[%clk 0:02:57]} 7. g4 {[%clk 0:02:26]}  O-O {[%clk 0:02:44]} 8. gxf5 {[%clk 0:02:23]}  exf5 {[%clk 0:02:43]} 9. Qb3 {[%clk 0:02:22]}  dxc4 {[%clk 0:02:31]} 10. Bxc4+ {[%clk 0:02:20]}  Kh8 {[%clk 0:02:30]} 11. Ng5 {[%clk 0:02:21]}  Nd5 {[%clk 0:02:19]} 12. h4 {[%clk 0:02:14]}  Bb4 {[%clk 0:01:39]} 13. Bd2 {[%clk 0:02:09]}  Bxc3 {[%clk 0:01:33]} 14. bxc3 {[%clk 0:02:09]}  h6 {[%clk 0:01:33]} 15. Nf3 {[%clk 0:02:00]}  Nb6 {[%clk 0:01:29]} 16. Be2 {[%clk 0:01:55]}  Qe8 {[%clk 0:01:25]} 17. h5 {[%clk 0:01:52]}  Be6 {[%clk 0:01:24]} 18. c4 {[%clk 0:01:52]}  N8d7 {[%clk 0:01:21]} 19. Nh4 {[%clk 0:01:47]}  Bf7 {[%clk 0:01:17]} 20. Rg1 {[%clk 0:01:35]}  Nf6 {[%clk 0:01:05]} 21. Nxf5 {[%clk 0:01:30]}  Rg8 {[%clk 0:01:02]} 22. f3 {[%clk 0:01:18]}  Bxh5 {[%clk 0:00:58]} 23. e4 {[%clk 0:01:18]}  Nxe4 {[%clk 0:00:36]} 24. fxe4 {[%clk 0:01:17]}  Bxe2 {[%clk 0:00:36]} 25. Qe3 {[%clk 0:00:52]}  Nxc4 {[%clk 0:00:04]} 26. Qxe2 {[%clk 0:00:50]}  Nxd2 {[%clk 0:00:04]} 27. Kxd2 {[%clk 0:00:49]}  Rd8 {[%clk 0:00:03]} 28. Rxg7 {[%clk 0:00:46]}  Rxg7 {[%clk 0:00:02]} 29. Nxg7 {[%clk 0:00:40]} 1-0


[Site "https://www.chess.com"]

[Event "Titled Tuesday Blitz November 01 Early 2022"]
[White "Rakhmanov, Aleksandr"]
[Black "Aizpurua, Patrick Emilio"]
[WhiteFideId "4173708"]
[BlackFideId "6600522"]
[WhiteElo "2778"]
[BlackElo "2576"]
[Result "1-0"]
[Round "06"]
[TimeControl "180+1"]
[Date "2022.11.02"]
[WhiteClock "0:02:13"]
[BlackClock "0:01:44"]

1. d4 {[%clk 0:03:00]}  Nf6 {[%clk 0:02:59]} 2. c4 {[%clk 0:03:01]}  e6 {[%clk 0:02:58]} 3. Nc3 {[%clk 0:03:02]}  Bb4 {[%clk 0:02:57]} 4. e3 {[%clk 0:02:57]}  O-O {[%clk 0:02:56]} 5. Nf3 {[%clk 0:02:56]}  c5 {[%clk 0:02:56]} 6. Bd3 {[%clk 0:02:54]}  b6 {[%clk 0:02:52]} 7. Bd2 {[%clk 0:02:53]}  Bb7 {[%clk 0:02:52]} 8. a3 {[%clk 0:02:47]}  Bxc3 {[%clk 0:02:44]} 9. Bxc3 {[%clk 0:02:48]}  Ne4 {[%clk 0:02:42]} 10. Bxe4 {[%clk 0:02:45]}  Bxe4 {[%clk 0:02:43]} 11. dxc5 {[%clk 0:02:44]}  bxc5 {[%clk 0:02:40]} 12. Qd6 {[%clk 0:02:44]}  Nc6 {[%clk 0:02:12]} 13. Qxc5 {[%clk 0:02:32]}  Rc8 {[%clk 0:02:03]} 14. Qd6 {[%clk 0:02:22]}  Re8 {[%clk 0:01:52]} 15. Rd1 {[%clk 0:02:20]}  Na5 {[%clk 0:01:44]} 16. Qe5 {[%clk 0:02:13]} 1-0


[Site "https://www.chess.com"]

[Event "Titled Tuesday Blitz November 01 Early 2022"]
[White "Reprintsev, Alexander"]
[Black "Rosenberg, Evan S"]
[WhiteFideId "14100541"]
[BlackFideId "2019299"]
[WhiteElo "2230"]
[BlackElo "2377"]
[Result "0-1"]
[Round "06"]
[TimeControl "180+1"]
[Date "2022.11.02"]
[WhiteClock "0:00:10"]
[BlackClock "0:00:53"]

1. e4 {[%clk 0:00:38]}  e5 {[%clk 0:02:59]} 2. f4 {[%clk 0:00:38]}  d5 {[%clk 0:02:59]} 3. exd5 {[%clk 0:00:37]}  exf4 {[%clk 0:02:59]} 4. Nf3 {[%clk 0:00:37]}  Nf6 {[%clk 0:03:00]} 5. Bb5+ {[%clk 0:00:37]}  c6 {[%clk 0:02:47]} 6. dxc6 {[%clk 0:00:37]}  Nxc6 {[%clk 0:02:35]} 7. Nc3 {[%clk 0:00:36]}  Bc5 {[%clk 0:02:31]} 8. Qe2+ {[%clk 0:00:36]}  Be6 {[%clk 0:02:30]} 9. d4 {[%clk 0:00:31]}  Bxd4 {[%clk 0:02:22]} 10. Nxd4 {[%clk 0:00:30]}  Qxd4 {[%clk 0:02:21]} 11. Rf1 {[%clk 0:00:29]}  g5 {[%clk 0:02:06]} 12. g3 {[%clk 0:00:19]}  O-O-O {[%clk 0:01:50]} 13. gxf4 {[%clk 0:00:19]}  Bg4 {[%clk 0:01:46]} 14. Qe3 {[%clk 0:00:14]}  Rhe8 {[%clk 0:01:41]} 15. Kf2 {[%clk 0:00:14]}  Rxe3 {[%clk 0:01:34]} 16. Bxe3 {[%clk 0:00:15]}  Qd6 {[%clk 0:01:22]} 17. fxg5 {[%clk 0:00:13]}  Qxh2+ {[%clk 0:01:21]} 18. Ke1 {[%clk 0:00:14]}  Nd5 {[%clk 0:01:02]} 19. Nxd5 {[%clk 0:00:12]}  Rxd5 {[%clk 0:01:01]} 20. Bc4 {[%clk 0:00:10]}  Re5 {[%clk 0:00:53]} 0-1


[Site "https://www.chess.com"]

[Event "Titled Tuesday Blitz November 01 Early 2022"]
[White "Rios Escobar, Adan"]
[Black "Jaskolka, Tomasz"]
[WhiteFideId "3403645"]
[BlackFideId "1170791"]
[WhiteElo "2369"]
[BlackElo "2126"]
[Result "0-1"]
[Round "06"]
[TimeControl "180+1"]
[Date "2022.11.02"]
[WhiteClock "0:00:02"]
[BlackClock "0:01:18"]

1. d4 {[%clk 0:02:51]}  e6 {[%clk 0:02:59]} 2. c4 {[%clk 0:02:50]}  f5 {[%clk 0:02:59]} 3. g3 {[%clk 0:02:49]}  Nf6 {[%clk 0:02:59]} 4. Nf3 {[%clk 0:02:48]}  Be7 {[%clk 0:02:59]} 5. Bg2 {[%clk 0:02:48]}  O-O {[%clk 0:02:59]} 6. O-O {[%clk 0:02:48]}  d6 {[%clk 0:02:59]} 7. Nc3 {[%clk 0:02:23]}  Ne4 {[%clk 0:02:59]} 8. Nxe4 {[%clk 0:02:13]}  fxe4 {[%clk 0:02:59]} 9. Nd2 {[%clk 0:02:11]}  d5 {[%clk 0:03:00]} 10. f3 {[%clk 0:02:06]}  c5 {[%clk 0:02:47]} 11. fxe4 {[%clk 0:02:03]}  cxd4 {[%clk 0:02:47]} 12. Rxf8+ {[%clk 0:01:55]}  Qxf8 {[%clk 0:02:44]} 13. exd5 {[%clk 0:01:51]}  e5 {[%clk 0:02:44]} 14. Nf3 {[%clk 0:01:45]}  Nd7 {[%clk 0:02:43]} 15. Bg5 {[%clk 0:01:35]}  a5 {[%clk 0:02:29]} 16. Qd2 {[%clk 0:01:04]}  h6 {[%clk 0:02:23]} 17. Bxe7 {[%clk 0:00:56]}  Qxe7 {[%clk 0:02:24]} 18. Rf1 {[%clk 0:00:55]}  Nc5 {[%clk 0:02:19]} 19. Nh4 {[%clk 0:00:52]}  Bd7 {[%clk 0:02:16]} 20. Ng6 {[%clk 0:00:37]}  Qd6 {[%clk 0:02:16]} 21. Nh4 {[%clk 0:00:27]}  Rb8 {[%clk 0:02:06]} 22. e3 {[%clk 0:00:27]}  d3 {[%clk 0:02:05]} 23. b3 {[%clk 0:00:24]}  e4 {[%clk 0:02:05]} 24. Qc3 {[%clk 0:00:22]}  Rf8 {[%clk 0:01:59]} 25. Qd4 {[%clk 0:00:19]}  Rxf1+ {[%clk 0:01:57]} 26. Kxf1 {[%clk 0:00:20]}  Qf6+ {[%clk 0:01:49]} 27. Ke1 {[%clk 0:00:16]}  Qe7 {[%clk 0:01:37]} 28. Ng6 {[%clk 0:00:14]}  Qd6 {[%clk 0:01:36]} 29. Bxe4 {[%clk 0:00:10]}  Nxe4 {[%clk 0:01:34]} 30. Qxe4 {[%clk 0:00:10]}  Qb4+ {[%clk 0:01:34]} 31. Kf1 {[%clk 0:00:08]}  Qd2 {[%clk 0:01:27]} 32. Nf4 {[%clk 0:00:07]}  Qd1+ {[%clk 0:01:20]} 33. Kf2 {[%clk 0:00:06]}  d2 {[%clk 0:01:21]} 34. Qf3 {[%clk 0:00:06]}  Qe1+ {[%clk 0:01:18]} 35. Kg2 {[%clk 0:00:06]}  d1=Q {[%clk 0:01:18]} 36. Qxd1 {[%clk 0:00:03]}  Qxd1 {[%clk 0:01:18]} 37. e4 {[%clk 0:00:03]}  Qd2+ {[%clk 0:01:17]} 38. Kf3 {[%clk 0:00:03]}  g5 {[%clk 0:01:18]} 39. Ng6 {[%clk 0:00:02]}  g4# {[%clk 0:01:18]} 0-1


[Site "https://www.chess.com"]

[Event "Titled Tuesday Blitz November 01 Early 2022"]
[White "Ristic, Nebojsa B"]
[Black "Kustar, Sandor"]
[WhiteFideId "935468"]
[BlackFideId "702900"]
[WhiteElo "2320"]
[BlackElo "2381"]
[Result "1-0"]
[Round "06"]
[TimeControl "180+1"]
[Date "2022.11.02"]
[WhiteClock "0:00:38"]
[BlackClock "0:00:49"]

1. d4 {[%clk 0:03:00]}  Nf6 {[%clk 0:02:59]} 2. Bf4 {[%clk 0:03:01]}  g6 {[%clk 0:02:56]} 3. Nc3 {[%clk 0:03:01]}  Bg7 {[%clk 0:02:56]} 4. e4 {[%clk 0:03:01]}  d6 {[%clk 0:02:56]} 5. Qd2 {[%clk 0:03:01]}  Nc6 {[%clk 0:02:34]} 6. O-O-O {[%clk 0:02:53]}  O-O {[%clk 0:02:21]} 7. Nf3 {[%clk 0:02:52]}  Bg4 {[%clk 0:02:15]} 8. Qe3 {[%clk 0:02:52]}  Nh5 {[%clk 0:01:54]} 9. Bh6 {[%clk 0:02:48]}  Bxf3 {[%clk 0:01:50]} 10. gxf3 {[%clk 0:02:45]}  e5 {[%clk 0:01:39]} 11. dxe5 {[%clk 0:02:43]}  Nxe5 {[%clk 0:01:36]} 12. Be2 {[%clk 0:02:39]}  Bxh6 {[%clk 0:01:33]} 13. Qxh6 {[%clk 0:02:40]}  Qh4 {[%clk 0:01:31]} 14. Rdf1 {[%clk 0:01:36]}  Qf4+ {[%clk 0:01:26]} 15. Qxf4 {[%clk 0:01:36]}  Nxf4 {[%clk 0:01:27]} 16. Kd2 {[%clk 0:01:32]}  c6 {[%clk 0:01:18]} 17. Ke3 {[%clk 0:01:27]}  g5 {[%clk 0:01:17]} 18. h4 {[%clk 0:01:27]}  f6 {[%clk 0:01:17]} 19. Rd1 {[%clk 0:01:23]}  Ng2+ {[%clk 0:01:11]} 20. Kd2 {[%clk 0:01:20]}  Nxh4 {[%clk 0:01:11]} 21. f4 {[%clk 0:01:15]}  Neg6 {[%clk 0:01:11]} 22. Bc4+ {[%clk 0:01:09]}  Kg7 {[%clk 0:01:09]} 23. f5 {[%clk 0:01:00]}  Ne5 {[%clk 0:01:08]} 24. Be6 {[%clk 0:01:00]}  Rh8 {[%clk 0:01:01]} 25. Ke2 {[%clk 0:00:57]}  Rad8 {[%clk 0:00:59]} 26. f4 {[%clk 0:00:57]}  Ng4 {[%clk 0:00:50]} 27. Rdg1 {[%clk 0:00:46]}  h5 {[%clk 0:00:51]} 28. Nd1 {[%clk 0:00:38]}  Kf8 {[%clk 0:00:50]} 29. fxg5 {[%clk 0:00:38]}  fxg5 {[%clk 0:00:50]} 30. Ne3 {[%clk 0:00:37]}  Nxe3 {[%clk 0:00:49]} 31. Kxe3 {[%clk 0:00:38]} 1-0


[Site "https://www.chess.com"]